fUSD/lending_fUSD_20250611
["ID","MTS","AMOUNT","RATE_DAILY","PERIOD"]
[365408397,1749658248461,-693.06,0.00019178,2]
[365408398,1749658248471,-490.0,0.00019178,2]
[365408399,1749658248480,-490.0,0.00019178,2]
[365408400,1749658248490,-490.0,0.00019178,2]
[365408401,1749658248502,-1322.35,0.00019178,2]
[365408402,1749658248519,-490.0,0.00019178,2]
[365408403,1749658248529,-500.89,0.00019178,2]
[365408404,1749658248539,-460.0,0.00019178,2]
[365408405,1749658248549,-490.0,0.00019178,2]
[365408406,1749658248559,-1751.98,0.00019178,2]
[365408407,1749658248569,-574.28,0.00019178,2]
[365408408,1749658248578,-490.0,0.00019178,2]
[365408409,1749658248588,-460.0,0.00019178,2]
[365408410,1749658248597,-490.0,0.00019178,2]
[365408411,1749658248607,-1150.2,0.00019178,2]
[365408412,1749658248617,-490.0,0.00019178,2]
[365408413,1749658248627,-490.0,0.00019178,2]
[365408414,1749658248637,-490.0,0.00019178,2]
[365408415,1749658248646,-1216.85,0.00019178,2]
[365408416,1749658248656,-490.0,0.00019178,2]
[365408417,1749658248666,-7944.26,0.00019178,2]
[365408418,1749658248676,-1353.6,0.00019178,2]
[365408419,1749658248685,-490.0,0.00019178,2]
[365408420,1749658248695,-281.76792243,0.00019178,2]
[365408421,1749658248705,-490.0,0.00019178,2]
[365408422,1749658248715,-636.62,0.00019178,2]
[365408423,1749658248724,-480.0,0.00019178,2]
[365408424,1749658248734,-958.28,0.00019178,2]
[365408425,1749658248743,-490.0,0.00019178,2]
[365408426,1749658248753,-490.0,0.00019178,2]
[365408427,1749658248764,-920.14,0.00019178,2]
[365408428,1749658248774,-1239.4,0.00019178,2]
[365408429,1749658248784,-490.0,0.00019178,2]
[365408430,1749658248793,-490.0,0.00019178,2]
[365408431,1749658248802,-490.0,0.00019178,2]
[365408432,1749658248812,-490.0,0.00019178,2]
[365408433,1749658248821,-490.0,0.00019178,2]
[365408434,1749658248831,-490.0,0.00019178,2]
[365408435,1749658248840,-543.72,0.00019178,2]
[365408436,1749658248850,-667.73,0.00019178,2]
[365408437,1749658248860,-490.0,0.00019178,2]
[365408438,1749658248869,-1058.01,0.00019178,2]
[365408439,1749658248879,-287.20239213,0.00019178,2]
[365408440,1749658248889,-620.94,0.00019178,2]
[365408441,1749658248899,-868.13,0.00019178,2]
[365408442,1749658248908,-1384.62,0.00019178,2]
[365408443,1749658248918,-805.79,0.00019178,2]
[365408444,1749658248927,-490.0,0.00019178,2]
[365408445,1749658248937,-500.8,0.00019178,2]
[365408446,1749658248946,-681.56,0.00019178,2]
[365408447,1749658248956,-1135.59,0.00019178,2]
[365408448,1749658248965,-490.0,0.00019178,2]
[365408449,1749658248974,-491.15841506,0.00019178,2]
[365408450,1749658248984,-830.62,0.00019178,2]
[365408451,1749658248994,-500.0,0.00019178,2]
[365408452,1749658249004,-500.0,0.00019178,2]
[365408453,1749658249014,-500.0,0.00019178,2]
[365408454,1749658249024,-500.0,0.00019178,2]
[365408455,1749658249033,-500.0,0.00019178,2]
[365408456,1749658249043,-500.0,0.00019178,2]
[365408457,1749658249052,-361.61688211,0.00019178,2]
[365408458,1749658249063,-490.0,0.00019178,2]
[365408459,1749658249073,-490.0,0.00019178,2]
[365408460,1749658249082,-490.0,0.00019178,2]
[365408461,1749658249091,-488.00268727,0.00019178,2]
[365408462,1749658249101,-490.0,0.00019178,2]
[365408463,1749658249110,-2882.52,0.00019178,2]
[365408464,1749658249119,-490.0,0.00019178,2]
[365408465,1749658249129,-576.22,0.00019178,2]
[365408466,1749658249138,-490.0,0.00019178,2]
[365408467,1749658249148,-490.0,0.00019178,2]
[365408468,1749658249157,-490.0,0.00019178,2]
[365408469,1749658249166,-423.9475349,0.00019178,2]
[365408470,1749658249176,-241.97895104,0.00019178,2]
[365408471,1749658249185,-490.0,0.00019178,2]
[365408472,1749658249195,-550.76,0.00019178,2]
[365408473,1749658249204,-490.0,0.00019178,2]
[365408474,1749658249213,-460.0,0.00019178,2]
[365408475,1749658249222,-490.0,0.00019178,2]
[365408476,1749658249231,-490.0,0.00019178,2]
[365408477,1749658249240,-490.0,0.00019178,2]
[365408478,1749658249250,-1779.79,0.00019178,2]
[365408479,1749658249261,-580.4,0.00019178,2]
[365408480,1749658249269,-961.44,0.00019178,2]
[365408481,1749658249278,-490.0,0.00019178,2]
[365408482,1749658249287,-254.03503969,0.00019178,2]
[365408483,1749658249296,-490.0,0.00019178,2]
[365408484,1749658249306,-490.0,0.00019178,2]
[365408485,1749658249315,-5081.16,0.00019178,2]
[365408486,1749658249392,-490.0,0.00019178,2]
[365408487,1749658249403,-490.0,0.00019178,2]
[365408488,1749658249412,-567.4,0.00019178,2]
[365408489,1749658249422,-430.0,0.00019178,2]
[365408490,1749658249431,-435.21706976,0.00019178,2]
[365408491,1749658249440,-490.0,0.00019178,2]
[365408492,1749658249450,-490.0,0.00019178,2]
[365408493,1749658249459,-786.54,0.00019178,2]
[365408494,1749658249469,-490.0,0.00019178,2]
[365408495,1749658249478,-490.0,0.00019178,2]
[365408496,1749658249487,-4012.22,0.00019178,2]
[365408497,1749658249498,-4012.22,0.00019178,2]
[365408498,1749658249508,-490.0,0.00019178,2]
[365408499,1749658249522,-490.0,0.00019178,2]
[365408500,1749658249531,-490.0,0.00019178,2]
[365408501,1749658249542,-636.42,0.00019178,2]
[365408502,1749658249552,-490.0,0.00019178,2]
[365408503,1749658249561,-490.0,0.00019178,2]
[365408504,1749658249571,-490.0,0.00019178,2]
[365408505,1749658249580,-490.0,0.00019178,2]
[365408506,1749658249589,-607.89,0.00019178,2]
[365408507,1749658249599,-490.0,0.00019178,2]
[365408508,1749658249609,-490.0,0.00019178,2]
[365408509,1749658249618,-490.0,0.00019178,2]
[365408510,1749658249627,-490.0,0.00019178,2]
[365408511,1749658249637,-398.40092883,0.00019178,2]
[365408512,1749658249647,-1779.95,0.00019178,2]
[365408513,1749658249656,-436.98196149,0.00019178,2]
[365408514,1749658249665,-490.0,0.00019178,2]
[365408515,1749658249674,-490.0,0.00019178,2]
[365408516,1749658249684,-490.0,0.00019178,2]
[365408517,1749658249693,-941.93,0.00019178,2]
[365408518,1749658249703,-1718.77,0.00019178,2]
[365408519,1749658249712,-1429.92,0.00019178,2]
[365408520,1749658249722,-466.33605808,0.00019178,2]
[365408521,1749658249732,-490.0,0.00019178,2]
[365408522,1749658249741,-551.88,0.00019178,2]
[365408523,1749658249751,-490.0,0.00019178,2]
[365408524,1749658249762,-489.98211782,0.00019178,2]
[365408525,1749658249771,-490.0,0.00019178,2]
[365408526,1749658249780,-490.0,0.00019178,2]
[365408527,1749658249790,-490.0,0.00019178,2]
[365408528,1749658249801,-966.86,0.00019178,2]
[365408529,1749658249810,-760.22,0.00019178,2]
[365408530,1749658249820,-543.51,0.00019178,2]
[365408531,1749658249830,-490.0,0.00019178,2]
[365408532,1749658249840,-589.73,0.00019178,2]
[365408533,1749658249850,-490.0,0.00019178,2]
[365408534,1749658249859,-888.36,0.00019178,2]
[365408535,1749658249868,-2161.81,0.00019178,2]
[365408536,1749658249878,-490.0,0.00019178,2]
[365408537,1749658249888,-490.0,0.00019178,2]
[365408538,1749658249897,-490.0,0.00019178,2]
[365408539,1749658249906,-490.0,0.00019178,2]
[365408540,1749658249916,-490.0,0.00019178,2]
[365408541,1749658249925,-490.0,0.00019178,2]
[365408542,1749658249934,-825.74,0.00019178,2]
[365408543,1749658249943,-490.0,0.00019178,2]
[365408544,1749658249953,-490.0,0.00019178,2]
[365408545,1749658249962,-490.0,0.00019178,2]
[365408546,1749658249972,-490.0,0.00019178,2]
[365408547,1749658249981,-1915.5,0.00019178,2]
[365408548,1749658249990,-490.0,0.00019178,2]
[365408549,1749658250000,-495.55649483,0.00019178,2]
[365408550,1749658250009,-490.0,0.00019178,2]
[365408551,1749658250018,-490.0,0.00019178,2]
[365408552,1749658250028,-490.0,0.00019178,2]
[365408553,1749658250037,-490.0,0.00019178,2]
[365408554,1749658250046,-490.0,0.00019178,2]
[365408555,1749658250055,-490.0,0.00019178,2]
[365408556,1749658250065,-490.0,0.00019178,2]
[365408557,1749658250075,-676.56,0.00019178,2]
[365408558,1749658250084,-1022.71,0.00019178,2]
[365408559,1749658250094,-549.94,0.00019178,2]
[365408560,1749658250103,-490.0,0.00019178,2]
[365408561,1749658250114,-430.46970648,0.00019178,2]
[365408562,1749658250123,-490.0,0.00019178,2]
[365408563,1749658250132,-490.0,0.00019178,2]
[365408564,1749658250141,-895.4,0.00019178,2]
[365408565,1749658250151,-490.0,0.00019178,2]
[365408566,1749658250160,-490.0,0.00019178,2]
[365408567,1749658250169,-490.0,0.00019178,2]
[365408568,1749658250178,-490.0,0.00019178,2]
[365408569,1749658250187,-947.1,0.00019178,2]
[365408570,1749658250197,-490.0,0.00019178,2]
[365408571,1749658250206,-2636.92,0.00019178,2]
[365408572,1749658250216,-490.0,0.00019178,2]
[365408573,1749658250225,-783.98,0.00019178,2]
[365408574,1749658250234,-490.0,0.00019178,2]
[365408575,1749658250244,-2087.38,0.00019178,2]
[365408576,1749658250253,-916.1,0.00019178,2]
[365408577,1749658250264,-526.65,0.00019178,2]
[365408578,1749658250274,-490.0,0.00019178,2]
[365408579,1749658250284,-490.0,0.00019178,2]
[365408580,1749658250293,-490.0,0.00019178,2]
[365408581,1749658250302,-490.0,0.00019178,2]
[365408582,1749658250312,-792.49,0.00019178,2]
[365408583,1749658250321,-490.0,0.00019178,2]
[365408584,1749658250330,-490.0,0.00019178,2]
[365408585,1749658250339,-490.0,0.00019178,2]
[365408586,1749658250349,-8804.44,0.00019178,2]
[365408587,1749658250358,-490.0,0.00019178,2]
[365408588,1749658250367,-7727.19,0.00019178,2]
[365408589,1749658250376,-1230.28,0.00019178,2]
[365408590,1749658250385,-490.0,0.00019178,2]
[365408591,1749658250394,-1882.48,0.00019178,2]
[365408592,1749658250403,-984.48,0.00019178,2]
[365408593,1749658250413,-1046.77,0.00019178,2]
[365408594,1749658250422,-490.0,0.00019178,2]
[365408595,1749658250431,-490.0,0.00019178,2]
[365408596,1749658250440,-490.0,0.00019178,2]
[365408597,1749658250450,-490.0,0.00019178,2]
[365408598,1749658250459,-663.2,0.00019178,2]
[365408599,1749658250468,-490.0,0.00019178,2]
[365408600,1749658250478,-490.0,0.00019178,2]
[365408601,1749658250487,-490.0,0.00019178,2]
[365408602,1749658250497,-490.0,0.00019178,2]
[365408603,1749658250506,-652.38,0.00019178,2]
[365408604,1749658250520,-1903.37,0.00019178,2]
[365408605,1749658250529,-490.0,0.00019178,2]
[365408606,1749658250538,-490.0,0.00019178,2]
[365408607,1749658250548,-490.0,0.00019178,2]
[365408608,1749658250558,-490.0,0.00019178,2]
[365408609,1749658250567,-490.0,0.00019178,2]
[365408610,1749658250576,-490.0,0.00019178,2]
[365408611,1749658250586,-939.39,0.00019178,2]
[365408612,1749658250596,-490.0,0.00019178,2]
[365408613,1749658250605,-490.0,0.00019178,2]
[365408614,1749658250614,-1699.5,0.00019178,2]
[365408615,1749658250624,-490.0,0.00019178,2]
[365408616,1749658250633,-668.44,0.00019178,2]
[365408617,1749658250642,-490.0,0.00019178,2]
[365408618,1749658250651,-7514.95,0.00019178,2]
[365408619,1749658250660,-490.0,0.00019178,2]
[365408620,1749658250669,-7514.95,0.00019178,2]
[365408621,1749658250679,-490.0,0.00019178,2]
[365408622,1749658250687,-800.92,0.00019178,2]
[365408623,1749658250697,-930.66,0.00019178,2]
[365408624,1749658250706,-490.0,0.00019178,2]
[365408625,1749658250716,-420.82193554,0.00019178,2]
[365408626,1749658250725,-751.17,0.00019178,2]
[365408627,1749658250735,-490.0,0.00019178,2]
[365408628,1749658250744,-490.0,0.00019178,2]
[365408629,1749658250753,-490.0,0.00019178,2]
[365408630,1749658250765,-490.0,0.00019178,2]
[365408631,1749658250774,-490.0,0.00019178,2]
[365408632,1749658250784,-490.0,0.00019178,2]
[365408633,1749658250794,-490.0,0.00019178,2]
[365408634,1749658250804,-1035.48,0.00019178,2]
[365408635,1749658250814,-490.0,0.00019178,2]
[365408636,1749658250824,-490.0,0.00019178,2]
[365408637,1749658250833,-490.0,0.00019178,2]
[365408638,1749658250842,-490.0,0.00019178,2]
[365408639,1749658250852,-533.29,0.00019178,2]
[365408640,1749658250862,-490.0,0.00019178,2]
[365408641,1749658250872,-490.0,0.00019178,2]
[365408642,1749658250882,-1017.86,0.00019178,2]
[365408643,1749658250892,-490.0,0.00019178,2]
[365408644,1749658250902,-490.0,0.00019178,2]
[365408645,1749658250911,-490.0,0.00019178,2]
[365408646,1749658250921,-490.0,0.00019178,2]
[365408647,1749658250931,-490.0,0.00019178,2]
[365408648,1749658250940,-490.0,0.00019178,2]
[365408649,1749658250950,-1220.95,0.00019178,2]
[365408650,1749658250959,-156.587,0.00019178,2]
[365408651,1749658250969,-169.3,0.00019178,2]
[365408652,1749658250978,-156.61,0.00019178,2]
[365408653,1749658250987,-302.16,0.00019178,2]
[365408654,1749658250997,-2264.10087164,0.00019211,2]
[365408655,1749658251006,-36013.6364,0.00019242,2]
[365408656,1749658251018,-1000.0,0.00019242,2]
[365408657,1749658251027,-219.5016916,0.00019242,2]
[365408658,1749658251036,-369.44632977,0.00019261,2]
[365408659,1749658251046,-11717.27271176,0.00019261,2]
[365408660,1749658251055,-1136.50011938,0.00019266,2]
[365408661,1749658251064,-833.29909032,0.00019266,2]
[365408662,1749658251074,-153.26403468,0.00019332,2]
[365408663,1749658251083,-500.0,0.0001934,2]
[365408664,1749658251092,-515.22003817,0.0001934,2]
[365408665,1749658251102,-500.0,0.0001934,2]
[365408666,1749658251111,-500.0,0.0001934,2]
[365408667,1749658251121,-500.0,0.0001934,2]
[365408668,1749658251130,-500.0,0.0001934,2]
[365408669,1749658251140,-500.0,0.0001934,2]
[365408670,1749658251150,-500.0,0.0001934,2]
[365408671,1749658251159,-500.0,0.0001934,2]
[365408672,1749658251168,-500.0,0.00019341,2]
[365408673,1749658251177,-500.0,0.00019341,2]
[365408674,1749658251187,-500.0,0.00019341,2]
[365408675,1749658251196,-500.0,0.00019341,2]
[365408676,1749658251205,-4012.22,0.00019341,2]
[365408677,1749658251215,-4012.22,0.00019341,2]
[365408678,1749658251224,-7514.95,0.00019341,2]
[365408679,1749658251233,-7514.95,0.00019341,2]
[365408680,1749658251243,-301.11,0.00019342,2]
[365408681,1749658251252,-371.11056006,0.00019342,2]
[365408682,1749658251262,-509.34045451,0.00019342,2]
[365408683,1749658251272,-740.16,0.00019342,2]
[365408684,1749658251281,-302.88779062,0.00019342,2]
[365408685,1749658251291,-490.0,0.00019342,2]
[365408686,1749658251301,-176.59420704,0.00019342,2]
[365408687,1749658251311,-312.03846027,0.00019342,2]
[365408688,1749658251320,-330.0,0.00019342,2]
[365408689,1749658251330,-387.7602452,0.00019342,2]
[365408690,1749658251340,-410.0,0.00019342,2]
[365408691,1749658251350,-181.69313456,0.00019342,2]
[365408692,1749658251360,-531.79768918,0.00019342,2]
[365408693,1749658251370,-490.0,0.00019342,2]
[365408694,1749658251380,-490.0,0.00019342,2]
[365408695,1749658251390,-490.0,0.00019342,2]
[365408696,1749658251400,-490.0,0.00019342,2]
[365408697,1749658251410,-490.0,0.00019342,2]
[365408698,1749658251420,-490.0,0.00019342,2]
[365408699,1749658251430,-450.0,0.00019342,2]
[365408700,1749658251439,-490.0,0.00019342,2]
[365408701,1749658251449,-490.0,0.00019342,2]
[365408702,1749658251459,-293.60243439,0.00019342,2]
[365408703,1749658251469,-490.0,0.00019342,2]
[365408704,1749658251479,-562.1764763,0.00019342,2]
[365408705,1749658251489,-490.0,0.00019342,2]
[365408706,1749658251501,-490.0,0.00019342,2]
[365408707,1749658251512,-490.0,0.00019342,2]
[365408708,1749658251522,-490.0,0.00019342,2]
[365408709,1749658251531,-490.0,0.00019342,2]
[365408710,1749658251541,-490.0,0.00019342,2]
[365408711,1749658251550,-490.0,0.00019342,2]
[365408712,1749658251560,-490.0,0.00019342,2]
[365408713,1749658251569,-490.0,0.00019342,2]
[365408714,1749658251580,-588.0,0.00019342,2]
[365408715,1749658251590,-490.0,0.00019342,2]
[365408716,1749658251600,-490.0,0.00019342,2]
[365408717,1749658251610,-490.0,0.00019342,2]
[365408718,1749658251619,-450.0,0.00019342,2]
[365408719,1749658251629,-490.0,0.00019342,2]
[365408720,1749658251639,-490.0,0.00019342,2]
[365408721,1749658251648,-490.0,0.00019342,2]
[365408722,1749658251658,-490.0,0.00019342,2]
[365408723,1749658251667,-490.0,0.00019342,2]
[365408724,1749658251677,-490.0,0.00019342,2]
[365408725,1749658251687,-490.0,0.00019342,2]
[365408726,1749658251697,-490.0,0.00019342,2]
[365408727,1749658251706,-490.0,0.00019342,2]
[365408728,1749658251716,-319.06927082,0.00019342,2]
[365408729,1749658251726,-490.0,0.00019342,2]
[365408730,1749658251736,-474.48598856,0.00019342,2]
[365408731,1749658251746,-490.0,0.00019342,2]
[365408732,1749658251756,-490.0,0.00019342,2]
[365408733,1749658251768,-490.0,0.00019342,2]
[365408734,1749658251778,-163.59279717,0.00019342,2]
[365408735,1749658251788,-490.0,0.00019342,2]
[365408736,1749658251798,-420.0,0.00019342,2]
[365408737,1749658251808,-490.0,0.00019342,2]
[365408738,1749658251817,-490.0,0.00019342,2]
[365408739,1749658251826,-510.97,0.00019342,2]
[365408740,1749658251836,-490.0,0.00019342,2]
[365408741,1749658251846,-500.32669736,0.00019342,2]
[365408742,1749658251855,-490.0,0.00019342,2]
[365408743,1749658251866,-490.0,0.00019342,2]
[365408744,1749658251876,-490.0,0.00019342,2]
[365408745,1749658251886,-461.91681663,0.00019342,2]
[365408746,1749658251895,-354.41908057,0.00019342,2]
[365408747,1749658251905,-343.29720452,0.00019342,2]
[365408748,1749658251915,-490.0,0.00019342,2]
[365408749,1749658251925,-490.0,0.00019342,2]
[365408750,1749658251934,-490.0,0.00019342,2]
[365408751,1749658251944,-490.0,0.00019342,2]
[365408752,1749658251954,-490.0,0.00019342,2]
[365408753,1749658251964,-490.0,0.00019342,2]
[365408754,1749658251975,-490.0,0.00019342,2]
[365408755,1749658251984,-490.0,0.00019342,2]
[365408756,1749658251994,-490.0,0.00019342,2]
[365408757,1749658252003,-490.0,0.00019342,2]
[365408758,1749658252015,-490.0,0.00019342,2]
[365408759,1749658252024,-606.45063177,0.00019342,2]
[365408760,1749658252035,-420.0,0.00019342,2]
[365408761,1749658252045,-490.0,0.00019342,2]
[365408762,1749658252055,-490.0,0.00019342,2]
[365408763,1749658252065,-490.0,0.00019342,2]
[365408764,1749658252074,-490.0,0.00019342,2]
[365408765,1749658252084,-490.0,0.00019342,2]
[365408766,1749658252094,-490.0,0.00019342,2]
[365408767,1749658252103,-490.0,0.00019342,2]
[365408768,1749658252113,-490.0,0.00019342,2]
[365408769,1749658252123,-334.02726832,0.00019342,2]
[365408770,1749658252132,-490.0,0.00019342,2]
[365408771,1749658252142,-490.0,0.00019342,2]
[365408772,1749658252152,-227.99023927,0.00019342,2]
[365408773,1749658252161,-490.0,0.00019342,2]
[365408774,1749658252171,-490.0,0.00019342,2]
[365408775,1749658252181,-443.29393376,0.00019342,2]
[365408776,1749658252191,-490.0,0.00019342,2]
[365408777,1749658252201,-490.0,0.00019342,2]
[365408778,1749658252211,-490.0,0.00019342,2]
[365408779,1749658252220,-490.0,0.00019342,2]
[365408780,1749658252230,-589.3,0.00019342,2]
[365408781,1749658252239,-490.0,0.00019342,2]
[365408782,1749658252249,-490.0,0.00019342,2]
[365408783,1749658252259,-490.0,0.00019342,2]
[365408784,1749658252272,-490.0,0.00019342,2]
[365408785,1749658252282,-420.0,0.00019342,2]
[365408786,1749658252292,-490.0,0.00019342,2]
[365408787,1749658252302,-420.0,0.00019342,2]
[365408788,1749658252312,-490.0,0.00019342,2]
[365408789,1749658252322,-490.0,0.00019342,2]
[365408790,1749658252331,-490.0,0.00019342,2]
[365408791,1749658252341,-490.0,0.00019342,2]
[365408792,1749658252351,-420.0,0.00019342,2]
[365408793,1749658252360,-490.0,0.00019342,2]
[365408794,1749658252370,-490.0,0.00019342,2]
[365408795,1749658252380,-509.77052292,0.00019342,2]
[365408796,1749658252390,-434.73163768,0.00019342,2]
[365408797,1749658252400,-473.78842918,0.00019342,2]
[365408798,1749658252410,-490.0,0.00019342,2]
[365408799,1749658252419,-164.69146614,0.00019342,2]
[365408800,1749658252429,-490.0,0.00019342,2]
[365408801,1749658252439,-382.21085907,0.00019342,2]
[365408802,1749658252448,-490.0,0.00019342,2]
[365408803,1749658252458,-490.0,0.00019342,2]
[365408804,1749658252467,-490.0,0.00019342,2]
[365408805,1749658252477,-490.0,0.00019342,2]
[365408806,1749658252486,-427.64773492,0.00019342,2]
[365408807,1749658252496,-444.17604451,0.00019342,2]
[365408808,1749658252507,-490.0,0.00019342,2]
[365408809,1749658252520,-490.0,0.00019342,2]
[365408810,1749658252530,-490.0,0.00019342,2]
[365408811,1749658252539,-431.41158765,0.00019342,2]
[365408812,1749658252549,-490.0,0.00019342,2]
[365408813,1749658252561,-490.0,0.00019342,2]
[365408814,1749658252570,-490.0,0.00019342,2]
[365408815,1749658252581,-490.0,0.00019342,2]
[365408816,1749658252595,-274.4986661,0.00019342,2]
[365408817,1749658252604,-525.06,0.00019342,2]
[365408818,1749658252614,-490.0,0.00019342,2]
[365408819,1749658252624,-490.0,0.00019342,2]
[365408820,1749658252634,-490.0,0.00019342,2]
[365408821,1749658252644,-490.0,0.00019342,2]
[365408822,1749658252654,-490.0,0.00019342,2]
[365408823,1749658252663,-591.55951221,0.00019342,2]
[365408824,1749658252673,-426.79406754,0.00019342,2]
[365408825,1749658252684,-490.0,0.00019342,2]
[365408826,1749658252694,-490.0,0.00019342,2]
[365408827,1749658252704,-490.0,0.00019342,2]
[365408828,1749658252713,-797.4,0.00019342,2]
[365408829,1749658252723,-490.0,0.00019342,2]
[365408830,1749658252733,-490.0,0.00019342,2]
[365408831,1749658252743,-490.0,0.00019342,2]
[365408832,1749658252753,-490.0,0.00019342,2]
[365408833,1749658252764,-490.0,0.00019342,2]
[365408834,1749658252774,-490.0,0.00019342,2]
[365408835,1749658252783,-490.0,0.00019342,2]
[365408836,1749658252793,-524.70409553,0.00019342,2]
[365408837,1749658252803,-624.98,0.00019342,2]
[365408838,1749658252813,-490.0,0.00019342,2]
[365408839,1749658252823,-490.0,0.00019342,2]
[365408840,1749658252832,-490.0,0.00019342,2]
[365408841,1749658252842,-592.97541787,0.00019342,2]
[365408842,1749658252852,-490.0,0.00019342,2]
[365408843,1749658252862,-490.0,0.00019342,2]
[365408844,1749658252871,-490.0,0.00019342,2]
[365408845,1749658252881,-490.0,0.00019342,2]
[365408846,1749658252890,-452.99877706,0.00019342,2]
[365408847,1749658252899,-490.0,0.00019342,2]
[365408848,1749658252906,-490.0,0.00019342,2]
[365408849,1749658252915,-571.90705812,0.00019342,2]
[365408850,1749658252924,-490.0,0.00019342,2]
[365408851,1749658252932,-490.0,0.00019342,2]
[365408852,1749658252941,-351.02539881,0.00019342,2]
[365408853,1749658252948,-490.0,0.00019342,2]
[365408854,1749658252956,-490.0,0.00019342,2]
[365408855,1749658252965,-490.0,0.00019342,2]
[365408856,1749658252973,-1463.23,0.00019342,2]
[365408857,1749658252981,-490.0,0.00019342,2]
[365408858,1749658252988,-490.0,0.00019342,2]
[365408859,1749658252997,-490.0,0.00019342,2]
[365408860,1749658253005,-490.0,0.00019342,2]
[365408861,1749658253016,-490.0,0.00019342,2]
[365408862,1749658253026,-490.0,0.00019342,2]
[365408863,1749658253035,-490.0,0.00019342,2]
[365408864,1749658253044,-490.0,0.00019342,2]
[365408865,1749658253054,-704.02,0.00019342,2]
[365408866,1749658253063,-212.39894074,0.00019342,2]
[365408867,1749658253073,-401.69480208,0.00019342,2]
[365408868,1749658253082,-490.0,0.00019342,2]
[365408869,1749658253092,-635.73,0.00019342,2]
[365408870,1749658253102,-490.0,0.00019342,2]
[365408871,1749658253111,-490.0,0.00019342,2]
[365408872,1749658253121,-977.89,0.00019342,2]
[365408873,1749658253131,-490.0,0.00019342,2]
[365408874,1749658253140,-206.29690961,0.00019342,2]
[365408875,1749658253149,-490.0,0.00019342,2]
[365408876,1749658253159,-490.0,0.00019342,2]
[365408877,1749658253168,-490.0,0.00019342,2]
[365408878,1749658253178,-490.0,0.00019342,2]
[365408879,1749658253187,-490.0,0.00019342,2]
[365408880,1749658253196,-490.0,0.00019342,2]
[365408881,1749658253206,-490.0,0.00019342,2]
[365408882,1749658253215,-490.0,0.00019342,2]
[365408883,1749658253225,-490.0,0.00019342,2]
[365408884,1749658253234,-490.0,0.00019342,2]
[365408885,1749658253244,-490.0,0.00019342,2]
[365408886,1749658253253,-490.0,0.00019342,2]
[365408887,1749658253265,-490.0,0.00019342,2]
[365408888,1749658253274,-490.0,0.00019342,2]
[365408889,1749658253284,-490.0,0.00019342,2]
[365408890,1749658253294,-490.0,0.00019342,2]
[365408891,1749658253304,-490.0,0.00019342,2]
[365408892,1749658253313,-490.0,0.00019342,2]
[365408893,1749658253323,-490.0,0.00019342,2]
[365408894,1749658253333,-554.63,0.00019342,2]
[365408895,1749658253342,-382.83042347,0.00019342,2]
[365408896,1749658253352,-250.0,0.00019342,2]